bitfinex/quotes_SOLUSD_20251125
["timestamp","ask_amount","ask_price","bid_price","bid_amount"]
[1764096154297,2.79554443,137.03,136.98,10.09567854]
[1764096154461,3.46554443,137.03,136.98,10.09567854]
[1764096154668,7.96820464,137.02,136.98,10.09567854]
[1764096154893,3.24,137.01,136.97,2.79554443]
[1764096155100,3.91,137.01,136.97,10.09628271]
[1764096155274,0.67,137.0,136.97,10.09628271]
[1764096155596,3.91,137.01,136.98,2.79554443]
[1764096155796,0.67,137.0,136.98,2.79554443]
[1764096156482,0.67,137.0,136.98,10.09575304]
[1764096157902,0.67,137.0,136.97,10.0961745]
[1764096158768,7.96946995,137.0,136.98,2.79554443]
[1764096158969,7.96946995,137.0,136.97,2.79554443]
[1764096159195,0.67,136.99,136.97,2.79554443]
[1764096160805,0.67,136.99,136.96,61.8]
[1764096161092,2.79554443,136.97,136.91,2.79554443]
[1764096161295,3.91,136.96,136.93,2.79554443]
[1764096161789,0.67,136.95,136.91,0.69]
[1764096161978,0.67,136.95,136.92,2.79554443]
[1764096162179,0.67,136.95,136.93,2.79554443]
[1764096162498,3.24,136.96,136.94,2.79554443]
[1764096162699,3.24,136.96,136.95,2.79554443]
[1764096163184,3.24,136.96,136.93,26.25023179]
[1764096163185,3.91,136.96,136.93,7.30272796]
[1764096163364,0.67,136.95,136.93,10.09827239]
[1764096163567,3.24,136.96,136.94,2.79554443]
[1764096163568,3.91,136.96,136.94,2.79554443]
[1764096164494,3.91,136.96,136.94,10.09791284]
[1764096165075,3.24,136.96,136.94,10.09791284]
[1764096165274,3.24,136.96,136.95,2.79554443]
[1764096165499,3.91,136.96,136.95,2.79554443]
[1764096165793,3.24,136.96,136.95,2.79554443]
[1764096166494,3.24,136.96,136.95,10.09747944]
[1764096168873,3.24,136.96,136.94,7.30246823]
[1764096169074,3.91,136.96,136.95,2.79554443]
[1764096169403,3.91,136.96,136.94,2.79554443]
[1764096170103,3.91,136.96,136.95,2.79554443]
[1764096172409,3.91,136.96,136.9,18.26089477]
[1764096172597,0.67,136.95,136.9,69.10460189]
[1764096172792,0.67,136.95,136.92,2.79554443]
[1764096173491,0.67,136.95,136.92,10.09906679]
[1764096175604,0.67,136.95,136.92,7.30352236]
[1764096175789,0.67,136.95,136.91,2.79554443]
[1764096176303,7.97207245,136.95,136.91,2.79554443]
[1764096176991,0.65,136.94,136.91,2.79554443]
[1764096177394,0.65,136.94,136.91,10.09944446]
[1764096178608,7.9525772,136.94,136.91,10.09944446]
[1764096179092,0.65,136.93,136.91,10.09944446]
[1764096179286,3.24,136.92,136.91,10.09944446]
[1764096181703,3.95,136.92,136.9,2.79554443]
[1764096183004,3.95,136.92,136.9,10.10005776]
[1764096185018,7.30177863,136.96,136.91,10.09936893]
[1764096185198,3.95,136.95,136.92,2.79554443]
[1764096185616,0.71,136.94,136.91,10.09936893]
[1764096185917,0.71,136.94,136.89,10.10048293]
[1764096186929,8.01293279,136.94,136.9,2.79554443]
[1764096187310,0.71,136.93,136.9,2.79554443]
[1764096187498,0.71,136.93,136.9,10.10013361]
[1764096187996,0.71,136.93,136.91,2.79554443]
[1764096188192,0.71,136.93,136.9,10.10013361]
[1764096190410,8.01308026,136.93,136.9,7.30458918]
[1764096190610,8.01308026,136.93,136.89,7.30493239]
[1764096190922,0.71,136.92,136.9,2.79554443]
[1764096191224,3.24,136.91,136.9,2.79554443]
[1764096191608,3.24,136.91,136.9,10.10014632]
[1764096192321,3.24,136.91,136.9,29.06165106]
[1764096193413,3.24,136.91,136.9,90.86165106]
[1764096193816,3.24,136.91,136.9,88.06610663]
[1764096194024,3.24,136.91,136.9,90.86165106]
[1764096196299,3.24,136.94,136.9,90.86165106]
[1764096196602,3.24,136.94,136.93,2.79554443]
[1764096197016,3.95,136.94,136.93,2.79554443]
[1764096197919,3.24,136.94,136.93,2.79554443]
[1764096198628,3.24,136.94,136.93,10.09854596]
[1764096198809,3.95,136.94,136.93,10.09854596]
[1764096199711,3.24,136.94,136.93,10.09854596]
[1764096201010,3.24,136.94,136.93,10.79854596]
[1764096201419,3.24,136.94,136.93,10.09854596]
[1764096201627,3.24,136.94,136.93,10.79854596]
[1764096201838,3.24,136.94,136.93,10.09854596]
[1764096204339,3.24,136.94,136.93,10.76854596]
[1764096204547,3.24,136.94,136.93,10.09854596]
[1764096205044,3.24,136.94,136.9,17.03932418]
[1764096205045,3.95,136.94,136.9,17.03932418]
[1764096205216,3.50554443,136.93,136.89,10.10041783]
[1764096205416,0.71,136.93,136.9,2.79554443]
[1764096205622,0.71,136.92,136.9,2.79554443]
[1764096209946,0.71,136.92,136.9,10.0999757]
[1764096214052,0.71,136.92,136.88,62.47]
[1764096214253,10.8091251,136.92,136.88,61.8]
[1764096214454,10.8091251,136.92,136.87,7.3060343]
[1764096214455,10.09995082,136.91,136.87,10.10157873]
[1764096214666,3.24,136.9,136.87,11.6841258]
[1764096214842,3.95,136.9,136.87,11.6841258]
[1764096215044,0.71,136.89,136.86,11.68460439]
[1764096215240,5.0880915,136.89,136.82,16.21861983]
[1764096215428,5.0880915,136.88,136.84,4.3780915]
[1764096215629,0.71,136.88,136.84,4.3780915]
[1764096215828,0.71,136.87,136.85,4.3780915]
[1764096216030,3.24,136.86,136.85,4.3780915]
[1764096216327,0.71,136.88,136.85,4.3780915]
[1764096216553,3.24,136.87,136.85,11.68505598]
[1764096217127,3.95,136.87,136.86,4.3780915]
[1764096217544,3.95,136.87,136.85,7.30696448]
[1764096217743,3.95,136.87,136.85,11.68505598]
[1764096218057,3.95,136.87,136.85,4.3780915]
[1764096218757,3.95,136.87,136.86,4.3780915]
[1764096219257,3.95,136.87,136.85,7.30680789]
[1764096219560,3.95,136.87,136.86,4.3780915]
[1764096219948,3.95,136.87,136.85,11.68489939]
[1764096220151,3.24,136.87,136.85,11.68489939]
[1764096220353,0.71,136.86,136.84,4.3780915]
[1764096220558,0.71,136.86,136.83,7.30833205]
[1764096220559,0.71,136.86,136.83,4.3780915]
[1764096221259,0.71,136.86,136.84,4.3780915]
[1764096224968,0.71,136.86,136.83,11.68625234]
[1764096226666,3.24,136.86,136.85,11.6852442]
[1764096226869,3.24,136.86,136.85,4.3780915]
[1764096227076,3.24,136.86,136.85,11.68536223]
[1764096227452,3.24,136.86,136.85,4.3780915]
[1764096227966,3.24,136.86,136.85,11.68536223]
[1764096231160,3.95,136.86,136.82,17.078864]
[1764096231352,3.95,136.86,136.82,24.38760982]
[1764096231665,0.71,136.85,136.83,4.3780915]
[1764096232445,0.71,136.85,136.82,11.78683732]
[1764096232965,0.71,136.85,136.83,4.3780915]
[1764096234154,0.71,136.85,136.82,11.78683732]
[1764096234363,12.39549008,136.85,136.82,0.1]
[1764096234763,0.69,136.84,136.82,0.1]
[1764096235953,0.69,136.84,136.82,4.4780915]
[1764096236348,0.69,136.84,136.82,0.1]
[1764096236560,0.69,136.84,136.82,4.4780915]
[1764096237963,7.99697224,136.86,136.83,4.3780915]
[1764096238159,3.93,136.85,136.82,11.78694928]
[1764096238484,4.3780915,136.92,136.82,11.78694928]
[1764096238485,4.3780915,136.9,136.84,4.3780915]
[1764096238692,3.24,136.89,136.85,4.3780915]
[1764096238974,3.93,136.89,136.83,17.018864]
[1764096239162,0.69,136.88,136.85,4.3780915]
[1764096240259,0.69,136.88,136.85,11.68514766]
[1764096244078,0.69,136.88,136.83,4.3780915]
[1764096244079,12.37391614,136.88,136.83,4.3780915]
[1764096244475,0.69,136.87,136.83,4.3780915]
[1764096244780,0.69,136.87,136.84,4.3780915]
[1764096244982,0.69,136.87,136.84,11.68577231]
[1764096245368,7.9962186,136.87,136.83,7.30826181]
[1764096245576,7.9962186,136.87,136.83,11.68635331]
[1764096245882,0.69,136.86,136.83,11.68635331]
[1764096246076,3.24,136.85,136.82,11.78676542]
[1764096246461,0.69,136.84,136.82,11.78676542]
[1764096248075,0.69,136.84,136.82,4.4780915]
[1764096248495,0.69,136.84,136.82,11.7869473]
[1764096251367,0.69,136.84,136.82,4.4780915]
[1764096252169,3.24,136.85,136.83,5.0380915]
[1764096252374,3.93,136.85,136.84,4.3780915]
[1764096252583,3.93,136.85,136.83,4.3780915]
[1764096252888,3.93,136.85,136.82,4.4780915]
[1764096252889,0.69,136.84,136.82,4.4780915]
[1764096253289,0.69,136.84,136.82,0.1]
[1764096253486,7.99788983,136.84,136.82,0.1]
[1764096253868,0.69,136.83,136.82,0.1]
[1764096254073,3.24,136.83,136.82,0.1]
[1764096254266,3.24,136.83,136.82,4.4780915]
[1764096256092,3.24,136.83,136.82,11.78696447]
[1764096256592,3.93,136.83,136.82,0.1]
[1764096256781,3.93,136.83,136.82,4.4780915]
[1764096258372,3.24,136.83,136.82,11.78696447]
[1764096259297,3.93,136.83,136.82,11.78696447]
[1764096260478,3.93,136.83,136.82,4.4780915]
[1764096260682,3.93,136.83,136.82,0.1]
[1764096260890,3.93,136.83,136.82,4.4780915]
[1764096261100,3.24,136.83,136.82,4.4780915]
[1764096261695,3.24,136.83,136.82,5.1380915]
[1764096262690,3.24,136.83,136.82,12.44696447]
[1764096264601,3.24,136.83,136.82,74.24696447]
[1764096269487,3.24,136.83,136.82,61.9]
[1764096269699,3.93,136.83,136.82,61.9]
[1764096270510,3.93,136.83,136.82,0.1]
[1764096271110,3.93,136.83,136.82,4.4780915]
[1764096271488,3.24,136.83,136.82,11.78696447]
[1764096271685,3.24,136.83,136.82,12.48696447]
[1764096272190,3.24,136.83,136.82,7.40887297]
[1764096272499,3.93,136.83,136.82,0.1]
[1764096272700,3.24,136.83,136.82,4.4780915]
[1764096273195,3.93,136.83,136.82,4.4780915]
[1764096274191,3.24,136.83,136.82,12.48696447]
[1764096275416,0.69,136.88,136.82,30.75914689]
[1764096275591,3.24,136.87,136.86,4.3780915]
[1764096276197,3.24,136.87,136.86,12.38482831]
[1764096276589,3.24,136.87,136.86,19.6172828]
[1764096276788,7.30262436,136.94,136.86,37.88412482]
[1764096276789,0.69,136.93,136.86,37.88412482]
[1764096277091,3.24,136.91,136.87,0.7]
[1764096277689,3.93,136.91,136.87,0.7]
[1764096278114,3.93,136.91,136.9,2.80060107]
[1764096278618,3.93,136.91,136.85,27.51126828]
[1764096278619,27.54293656,136.91,136.83,0.7]
[1764096278789,0.69,136.9,136.87,2.80060107]
[1764096279115,0.69,136.9,136.88,2.80060107]
[1764096279300,0.69,136.9,136.89,2.80060107]
[1764096279502,0.69,136.9,136.86,0.7]
[1764096280813,0.69,136.9,136.87,7.30620296]
[1764096281023,0.69,136.9,136.88,2.80060107]
[1764096281323,0.69,136.9,136.87,10.10680403]
[1764096282222,0.69,136.9,136.88,2.80060107]
[1764096283423,0.69,136.9,136.89,2.80060107]
[1764096283718,0.69,136.9,136.87,7.30620296]
[1764096283920,3.24,136.91,136.87,7.30620296]
[1764096284100,0.69,136.9,136.87,8.00620296]
[1764096284302,0.69,136.9,136.87,7.30620296]
[1764096285206,0.69,136.9,136.87,25.57171037]
[1764096286316,0.69,136.9,136.87,18.26550741]
[1764096287097,2.80060107,136.88,136.82,0.1]
[1764096287315,3.24,136.87,136.84,2.80060107]
[1764096287511,3.24,136.87,136.85,2.80060107]
[1764096287707,0.69,136.86,136.85,2.80060107]
[1764096288521,3.24,136.87,136.85,2.80060107]
[1764096288722,3.93,136.87,136.86,2.80060107]
[1764096288925,3.24,136.87,136.84,7.30761396]
[1764096289128,3.24,136.87,136.86,2.80060107]
[1764096289733,3.24,136.87,136.86,3.50060107]
[1764096290832,3.24,136.87,136.86,10.80733788]
[1764096292528,3.24,136.9,136.86,90.8741799]
[1764096292739,3.24,136.9,136.89,10.10573658]
[1764096293024,0.69,136.91,136.89,10.10573658]
[1764096293336,3.24,136.9,136.89,7.30513551]
[1764096293909,0.69,136.91,136.89,7.30513551]
[1764096294229,3.24,136.9,136.89,7.30513551]
[1764096294433,3.24,136.9,136.89,10.10573658]
[1764096294625,3.24,136.9,136.89,2.80060107]
[1764096295132,3.9,136.9,136.89,10.10573658]
[1764096295727,3.24,136.9,136.89,10.10573658]
[1764096300817,3.24,136.9,136.89,10.76573658]
[1764096301512,3.24,136.9,136.89,19.5756815]
[1764096301708,3.24,136.93,136.9,8.80994492]
[1764096301908,0.67,136.97,136.92,5.60120214]
[1764096302108,3.24,136.96,136.94,2.80060107]
[1764096302308,3.24,136.96,136.9,8.80994492]
[1764096302606,0.67,136.95,136.9,9.46994492]
[1764096302810,0.67,136.95,136.93,2.80060107]
[1764096303041,0.67,136.95,136.93,10.10336484]
[1764096303546,3.24,136.96,136.94,2.80060107]
[1764096303838,0.67,136.95,136.93,7.30276377]
[1764096304138,0.67,136.95,136.93,10.10336484]
[1764096304606,3.24,136.96,136.94,2.80060107]
[1764096304807,3.24,136.96,136.95,2.80060107]
[1764096305018,3.24,136.96,136.95,10.10253608]
[1764096305218,3.91,136.96,136.94,7.30225145]
[1764096305511,3.91,136.96,136.95,2.80060107]
[1764096305836,3.91,136.96,136.94,10.10285252]
[1764096306026,3.91,136.96,136.93,10.10349807]
[1764096306236,3.91,136.96,136.94,2.80060107]
[1764096306431,3.91,136.96,136.95,2.80060107]
[1764096306734,3.24,136.96,136.95,2.80060107]
[1764096306915,3.91,136.96,136.95,2.80060107]
[1764096307327,3.91,136.96,136.94,10.10262596]
[1764096307527,3.24,136.96,136.94,10.1030693]
[1764096307710,3.91,136.96,136.94,10.1030693]
[1764096307909,0.67,136.95,136.94,10.1030693]
[1764096308835,3.24,136.96,136.94,10.1030693]
[1764096309041,0.67,136.95,136.94,10.1030693]
[1764096309840,3.91,136.96,136.94,10.1030693]
[1764096310043,3.24,136.96,136.95,2.80060107]
[1764096310841,3.91,136.96,136.95,2.80060107]
[1764096311215,3.91,136.96,136.95,10.10253608]
[1764096311417,3.91,136.96,136.95,7.30193501]
[1764096311618,3.91,136.96,136.95,10.10253608]
[1764096312938,3.24,136.96,136.95,10.10253608]
[1764096313351,11.21146503,136.96,136.93,61.8]
[1764096313517,0.67,136.95,136.92,7.30323102]
[1764096313914,0.67,136.95,136.91,10.10441229]
[1764096314237,3.47060107,136.95,136.91,2.80060107]
[1764096314554,3.47060107,136.95,136.9,71.90500699]
[1764096314730,0.67,136.94,136.9,71.90500699]
[1764096315518,10.77314471,136.94,136.9,71.90500699]
[1764096316043,0.67,136.93,136.9,69.10440592]
[1764096316230,3.24,136.92,136.9,71.90500699]
[1764096316546,3.24,136.92,136.9,10.10500699]
[1764096316843,3.24,136.92,136.91,2.80060107]
[1764096317454,3.24,136.92,136.91,7.96406836]
[1764096317626,3.24,136.93,136.91,29.02484034]
[1764096317822,3.24,136.93,136.92,0.66]
[1764096318126,3.24,136.93,136.92,3.46060107]
[1764096319850,3.24,136.93,136.92,10.76413598]
[1764096321739,3.91,136.93,136.92,10.10413598]
[1764096322245,3.24,136.93,136.92,10.10413598]
[1764096323448,3.24,136.93,136.92,10.78413598]
[1764096323949,3.24,136.93,136.92,13.58473705]
[1764096324850,3.96,136.97,136.93,8.80994492]
[1764096325032,3.96,136.97,136.96,2.80060107]
[1764096325231,3.24,136.97,136.96,2.80060107]
[1764096325959,3.24,136.97,136.96,10.10200293]
[1764096326160,3.24,136.97,136.96,10.78200293]
[1764096327926,3.24,136.97,136.96,10.10200293]
[1764096328625,3.96,136.97,136.93,7.30300153]
[1764096328826,0.72,136.96,136.94,2.80060107]
[1764096329232,0.72,136.96,136.93,10.1036026]
[1764096329636,0.72,136.96,136.94,2.80060107]
[1764096330354,0.72,136.98,136.95,2.80060107]
[1764096330664,34.5559802,137.01,136.94,7.30229162]
[1764096330665,3.24,136.96,136.94,7.30229162]
[1764096331340,3.24,136.96,136.94,18.25617058]
[1764096331653,3.96,136.96,136.95,2.80060107]
[1764096333434,3.24,136.96,136.95,10.78253608]
[1764096334154,3.24,136.96,136.95,7.98193501]
[1764096334357,3.24,136.96,136.95,10.78253608]
[1764096335252,3.24,136.96,136.95,7.30193501]
[1764096335452,3.96,136.96,136.95,7.30193501]
[1764096335671,3.24,136.96,136.95,10.10253608]
[1764096336456,3.24,136.96,136.95,2.80060107]
[1764096336657,3.24,136.96,136.95,4.37215309]
[1764096336853,3.96,136.96,136.95,4.37215309]
[1764096337357,3.96,136.96,136.95,11.6740881]
[1764096337778,3.96,136.96,136.95,7.30193501]
[1764096339376,3.24,136.96,136.95,11.6740881]
[1764096339552,3.96,137.0,136.96,8.80994492]
[1764096339750,3.24,137.0,136.98,4.37215309]
[1764096339982,0.72,136.99,136.98,4.37215309]
[1764096340158,3.96,137.0,136.98,4.37215309]
[1764096340561,3.96,137.0,136.98,11.67215309]
[1764096340752,3.96,137.0,136.98,7.3]
[1764096342778,3.24,137.0,136.99,4.37215309]
[1764096343157,3.24,137.0,136.98,11.67215309]
[1764096343755,0.72,137.04,136.99,5.05215309]
[1764096343953,3.96,137.03,137.0,4.37215309]
[1764096344479,0.72,137.02,137.0,4.37215309]
[1764096344669,0.72,137.02,137.01,7.29873731]
[1764096345676,3.24,137.03,137.01,11.6708904]
[1764096345980,3.96,137.03,137.01,11.6708904]
[1764096346179,3.24,137.03,137.01,11.6708904]
[1764096346560,3.24,137.03,137.02,11.67035773]
[1764096349181,3.24,137.03,137.02,7.29820464]
[1764096349775,3.24,137.03,137.0,18.92738509]
[1764096349776,3.96,137.03,137.0,29.91829247]
[1764096350082,0.72,137.02,137.0,11.67090738]
[1764096350991,3.96,137.03,137.0,11.67090738]
[1764096352165,3.24,137.03,137.0,11.67090738]
[1764096352465,0.72,137.02,137.0,11.67090738]
[1764096353103,0.72,137.02,137.0,7.29875429]
[1764096353269,0.72,137.02,136.99,11.67171815]
[1764096353466,0.72,137.02,136.99,73.47171815]
[1764096354291,0.72,137.02,137.0,4.37215309]
[1764096354665,3.24,137.03,137.01,4.37215309]
[1764096354893,3.95,137.03,137.01,4.37215309]
[1764096356487,3.95,137.03,137.01,11.67040151]
[1764096356668,3.24,137.03,137.01,11.67040151]
[1764096356871,3.24,137.03,137.02,4.37215309]
[1764096357792,3.24,137.03,137.02,5.04215309]
[1764096358464,3.24,137.03,137.02,7.96820464]
[1764096358693,3.24,137.03,137.02,74.14035773]
[1764096359203,3.24,137.03,137.02,61.8]
[1764096359366,3.96,137.03,137.02,61.8]
[1764096360097,3.96,137.03,137.02,69.09820464]
[1764096360281,3.96,137.03,137.02,61.8]
[1764096360668,3.96,137.03,137.02,69.09820464]
[1764096362500,3.96,137.03,137.02,7.29820464]
[1764096362679,3.96,137.03,137.0,7.29908977]
[1764096362886,0.72,137.02,137.0,11.67124286]
[1764096363084,0.72,137.02,137.0,7.29908977]
[1764096363277,0.72,137.02,136.99,7.29971837]
[1764096363689,3.24,137.03,137.0,4.37215309]
[1764096363897,3.24,137.03,137.01,4.37215309]
[1764096364198,3.24,137.03,137.02,4.37215309]
[1764096364908,3.24,137.03,137.02,11.67035773]
[1764096365272,3.96,137.03,137.02,11.67035773]
[1764096365469,3.96,137.03,137.02,7.29820464]
[1764096366199,3.24,137.03,137.02,7.29820464]
[1764096366786,3.96,137.03,137.02,7.29820464]
[1764096368298,3.24,137.03,137.02,11.67035773]
[1764096368603,3.24,137.03,137.02,12.33035773]
[1764096369105,3.24,137.03,137.02,74.13035773]
[1764096371312,3.24,137.03,137.02,69.09820464]
[1764096371511,3.96,137.03,137.02,61.8]
[1764096371803,3.96,137.03,136.95,11.66869431]
[1764096371804,8.33215309,137.03,136.95,11.66869431]
[1764096371991,4.37215309,137.01,136.96,4.37215309]
[1764096372191,4.37215309,137.0,136.95,20.68101709]
[1764096372508,3.24,136.99,136.95,20.68101709]
[1764096372675,3.96,136.99,136.96,7.30140186]
[1764096373099,0.72,136.98,136.96,7.30140186]
[1764096373285,3.24,136.99,136.96,12.33355495]
[1764096373484,3.96,136.99,136.96,29.92705962]
[1764096374099,0.72,136.98,136.96,7.30140186]
[1764096374493,0.72,136.98,136.96,11.67355495]
[1764096375081,0.72,136.98,136.95,11.67387875]
[1764096375604,0.72,136.98,136.95,7.30172566]
[1764096375909,0.72,136.98,136.95,11.67387875]
[1764096376605,0.72,136.98,136.95,29.92871628]
[1764096377478,0.72,136.98,136.96,4.37215309]
[1764096378292,0.72,136.98,136.96,11.67321825]
[1764096383722,3.24,136.99,136.97,4.37215309]
[1764096383901,0.71,136.98,136.97,4.37215309]
[1764096384101,3.95,136.99,136.97,4.37215309]
[1764096384304,3.24,136.99,136.94,16.308864]
[1764096384499,4.37215309,136.97,136.91,0.71]
[1764096384813,4.37215309,136.97,136.92,4.37215309]
[1764096385006,0.71,136.96,136.93,4.37215309]
[1764096385215,3.24,136.95,136.93,4.37215309]
[1764096385520,3.24,136.95,136.91,20.68101709]
[1764096385692,0.71,136.94,136.91,27.98504857]
[1764096385898,0.71,136.94,136.92,4.37215309]
[1764096386099,3.24,136.95,136.93,4.37215309]
[1764096386296,3.24,136.95,136.94,4.37215309]
[1764096386496,3.24,136.95,136.93,4.37215309]
[1764096386707,0.71,136.95,136.93,4.37215309]
[1764096386917,3.24,136.94,136.93,4.37215309]
[1764096387618,3.95,136.94,136.91,27.98504857]
[1764096387793,0.71,136.93,136.91,27.98504857]
[1764096387996,3.24,136.94,136.92,4.37215309]
[1764096388335,3.24,136.94,136.93,4.37215309]
[1764096388496,3.95,136.94,136.93,4.37215309]
[1764096388804,3.24,136.94,136.93,4.37215309]
[1764096389625,3.24,136.94,136.91,17.018864]
[1764096389803,3.95,136.94,136.92,11.67567013]
[1764096390129,3.24,136.94,136.93,4.37215309]
[1764096390731,0.71,136.98,136.93,13.89209801]
[1764096391028,3.24,136.98,136.97,4.37215309]
[1764096391430,3.24,136.98,136.97,5.08215309]
[1764096391803,3.24,136.98,136.97,12.38302189]
[1764096392106,3.24,136.98,136.97,11.67302189]
[1764096392611,3.24,136.98,136.97,12.38302189]
[1764096392812,3.24,136.98,136.97,11.67302189]
[1764096396744,3.24,136.98,136.93,27.77662384]
[1764096396745,3.95,136.98,136.93,27.77662384]
[1764096396905,0.71,136.97,136.95,2.79752615]
[1764096398512,0.71,136.97,136.95,10.0990596]
[1764096399319,0.71,136.97,136.95,7.30153345]
[1764096400523,3.24,136.98,136.97,7.3008688]
[1764096400724,3.95,136.98,136.97,2.79752615]
[1764096401918,3.24,136.98,136.97,2.79752615]
[1764096402118,3.24,136.99,136.97,3.50752615]
[1764096402320,3.24,136.99,136.96,87.35468433]
[1764096402321,3.24,136.99,136.98,2.79752615]
[1764096402632,3.24,136.99,136.98,10.09786196]
[1764096402929,3.24,136.99,136.98,7.30033581]
[1764096403132,3.24,136.99,136.98,2.79752615]
[1764096403336,3.24,136.99,136.98,10.09786196]
[1764096411629,3.24,136.99,136.98,10.80786196]
[1764096412742,3.24,136.99,136.98,10.09786196]
[1764096413042,3.24,136.99,136.98,71.89786196]
[1764096414355,0.71,137.01,136.98,90.14870149]
[1764096414531,3.95,137.01,137.0,2.79752615]
[1764096414729,0.66,137.04,137.0,2.79752615]
[1764096415029,3.9,137.06,137.03,2.79752615]
[1764096415640,0.66,137.05,137.04,2.79752615]
[1764096415839,3.9,137.06,137.04,2.79752615]
[1764096416021,3.9,137.06,137.05,2.79752615]
[1764096416536,3.9,137.06,137.04,2.79752615]
[1764096417144,3.9,137.06,137.05,2.79752615]
[1764096417838,3.24,137.06,137.05,2.79752615]
[1764096418039,0.66,137.09,137.05,3.46752615]
[1764096418230,3.24,137.08,137.07,2.79752615]
[1764096418422,0.66,137.09,137.07,2.79752615]
[1764096418423,0.66,137.09,137.07,10.09261575]
[1764096418622,0.66,137.09,137.08,2.79752615]
[1764096419327,0.66,137.09,137.07,10.09261575]
[1764096419529,0.66,137.09,137.07,2.79752615]
[1764096419725,0.66,137.09,137.07,10.09303402]
[1764096420959,0.2,137.1,137.09,8.80994492]
[1764096421125,0.2,137.1,137.09,11.60747107]
[1764096421336,0.2,137.11,137.09,12.30747107]
[1764096421655,0.2,137.13,137.12,25.11880892]
[1764096421832,0.2,137.13,137.12,30.71386122]
[1764096422139,0.2,137.13,137.12,31.41386122]
[1764096422352,0.2,137.13,137.12,35.90921721]
[1764096422842,0.2,137.13,137.12,35.20921721]
[1764096423026,0.2,137.13,137.12,2.79752615]
[1764096423345,0.2,137.13,137.12,10.09040829]
[1764096424131,0.2,137.13,137.12,19.60035321]
[1764096425626,0.2,137.13,137.12,18.90035321]
[1764096426433,0.2,137.13,137.12,19.60035321]
[1764096428134,0.2,137.13,137.12,18.90035321]
[1764096428334,0.2,137.13,137.12,19.60035321]
[1764096430079,0.2,137.13,137.12,16.80282706]
[1764096430268,0.2,137.13,137.12,19.60035321]
[1764096431944,0.2,137.13,137.12,18.90035321]
[1764096433250,0.2,137.13,137.12,10.09040829]
[1764096433447,0.87,137.13,137.12,10.09040829]
[1764096434077,0.2,137.13,137.12,10.09040829]
[1764096436045,0.2,137.13,137.12,19.60035321]
[1764096436637,0.2,137.13,137.12,18.90035321]
[1764096436842,0.2,137.13,137.12,80.70035321]
[1764096438274,0.2,137.13,137.12,81.40035321]
[1764096439868,0.2,137.14,137.12,81.40035321]
[1764096439869,0.2,137.14,137.13,8.80994492]
[1764096440076,0.2,137.14,137.13,15.83423225]
[1764096440244,0.2,137.14,137.13,32.14309625]
[1764096442267,0.2,137.14,137.13,39.43544657]
[1764096443768,0.86,137.14,137.13,32.41115924]
[1764096444079,0.86,137.14,137.13,26.39874047]
[1764096444080,0.2,137.14,137.13,26.39874047]
[1764096444245,0.2,137.14,137.13,47.04878999]
[1764096444448,0.2,137.14,137.13,47.77802502]
[1764096445574,0.2,137.14,137.13,47.12802502]
[1764096445751,0.2,137.14,137.13,109.57802502]
[1764096446475,0.2,137.14,137.13,98.38792042]
[1764096446662,0.2,137.14,137.13,97.73792042]
[1764096447055,0.2,137.14,137.13,101.18544657]
[1764096447257,1e-08,137.14,137.13,101.18544657]
[1764096447763,1e-08,137.14,137.13,109.57802502]
[1764096447946,0.2,137.15,137.13,127.80890083]